bitfinex/quotes_SOLUSD_20241007
["timestamp","ask_amount","ask_price","bid_price","bid_amount"]
[1728333033285,20.0,146.9,146.84,15.3302]
[1728333033493,6.8095,146.86,146.84,15.3302]
[1728333035129,6.8095,146.86,146.82,13.1598]
[1728333035883,20.12549,146.88,146.81,12.44043795]
[1728333036186,6.8097,146.85,146.81,19.25183795]
[1728333038706,6.8097,146.85,146.81,6.8114]
[1728333039005,6.8097,146.85,146.81,19.25183795]
[1728333040194,6.8097,146.85,146.81,6.8114]
[1728333040391,6.8102,146.84,146.8,39.9796]
[1728333040590,6.8102,146.84,146.8,52.42003795]
[1728333040808,6.93639,146.83,146.79,6.812]
[1728333040985,0.12549,146.85,146.79,12.44043795]
[1728333041181,6.8101,146.84,146.8,6.8119]
[1728333043293,6.8101,146.84,146.8,8.17407145]
[1728333043917,6.8101,146.84,146.8,6.8119]
[1728333045016,0.25098,146.83,146.79,17.0305]
[1728333045318,6.8111,146.82,146.79,17.0305]
[1728333045820,0.25098,146.85,146.79,17.0305]
[1728333046107,6.8107,146.83,146.79,23.8428]
[1728333049011,20.0,146.86,146.8,13.80275421]
[1728333049220,6.8097,146.85,146.82,6.8109]
[1728333049394,6.8097,146.85,146.81,18.39078842]
[1728333049593,6.8097,146.85,146.81,25.20198842]
[1728333054925,0.12549,146.86,146.81,25.20198842]
[1728333054926,6.8102,146.84,146.81,17.0287]
[1728333059628,0.12549,146.86,146.77,34.0649]
[1728333059803,6.8121,146.8,146.76,22.9628]
[1728333060119,6.8121,146.8,146.76,39.9968]
[1728333060320,6.8121,146.8,146.76,33.1832]
[1728333060523,17.15219,146.83,146.77,6.8133]
[1728333060524,0.12549,146.82,146.77,6.8133]
[1728333060719,6.8116,146.81,146.77,6.8133]
[1728333061413,6.812,146.8,146.76,39.9968]
[1728333063023,6.8116,146.81,146.77,6.813]
[1728333063223,6.8116,146.81,146.77,19.25343795]
[1728333064800,6.8116,146.81,146.76,33.1832]
[1728333064801,0.12549,146.82,146.76,33.1832]
[1728333065004,6.8124,146.79,146.76,39.997]
[1728333065203,6.8122,146.8,146.76,39.997]
[1728333066799,6.8122,146.8,146.77,1.36250445]
[1728333067206,6.8122,146.8,146.76,52.43743795]
[1728333067911,0.12549,146.82,146.76,52.43743795]
[1728333068229,6.8124,146.79,146.76,52.43743795]
[1728333070530,200.12549,146.8,146.76,16.1492]
[1728333070729,6.8129,146.78,146.76,16.1492]
[1728333071337,0.25098,146.79,146.76,16.1492]
[1728333071734,0.25098,146.79,146.75,6.8142]
[1728333071735,17.28258,146.79,146.68,15.4548]
[1728333072029,6.8133,146.78,146.74,6.8147]
[1728333073248,0.25098,146.79,146.73,19.25563795]
[1728333073416,6.8133,146.78,146.73,19.25563795]
[1728333073616,6.8134,146.77,146.73,19.25563795]
[1728333076132,0.25098,146.79,146.73,6.8152]
[1728333076341,6.813,146.78,146.74,6.8146]
[1728333077223,6.93819,146.79,146.75,19.25433795]
[1728333077531,6.8127,146.79,146.75,19.25433795]
[1728333077935,206.8121,146.8,146.76,6.8137]
[1728333078321,200.0,146.8,146.78,6.8128]
[1728333078520,200.0,146.8,146.77,12.44043795]
[1728333078928,200.0,146.8,146.78,6.8128]
[1728333079731,200.0,146.8,146.77,12.44043795]
[1728333079933,200.0,146.8,146.73,23.2824]
[1728333079934,6.8134,146.77,146.73,23.2824]
[1728333080123,6.8134,146.77,146.73,35.72283795]
[1728333085539,6.8149,146.74,146.7,6.8165]
[1728333085735,6.8153,146.73,146.69,40.3093]
[1728333086046,6.8153,146.73,146.69,52.74993795]
[1728333086245,6.8153,146.73,146.69,40.3095]
[1728333086551,6.8153,146.73,146.69,52.74993795]
[1728333087331,0.12549,146.76,146.71,12.44043795]
[1728333087532,207.10686372,146.8,146.73,12.44043795]
[1728333087770,6.8131,146.78,146.74,6.8146]
[1728333088640,207.10686372,146.8,146.73,36.29313795]
[1728333088641,6.8134,146.77,146.73,36.29313795]
[1728333089423,6.8134,146.77,146.73,23.8527]
[1728333097149,0.25098,146.79,146.75,29.47583795]
[1728333097448,200.0,146.8,146.77,6.8132]
[1728333097951,206.812,146.8,146.76,6.8136]
[1728333102559,200.0,146.8,146.78,6.8127]
[1728333102851,200.0,146.8,146.78,19.25313795]
[1728333103237,200.0,146.8,146.78,6.8127]
[1728333110748,0.12549,146.79,146.74,32.9794]
[1728333110941,0.25098,146.79,146.71,29.47973795]
[1728333111144,6.8143,146.75,146.72,6.8154]
[1728333111860,6.814,146.76,146.72,6.8154]
[1728333114648,6.814,146.76,146.72,19.25583795]
[1728333117367,0.25098,146.79,146.7,15.7844]
[1728333117560,0.12549,146.76,146.7,15.7844]
[1728333117768,6.8151,146.74,146.7,22.6008]
[1728333118260,0.25098,146.76,146.7,15.7844]
[1728333119973,6.8149,146.74,146.7,22.6009]
[1728333120863,6.8149,146.74,146.71,6.8161]
[1728333121761,6.8144,146.75,146.71,6.8161]
[1728333122070,0.12549,146.76,146.71,12.44043795]
[1728333122255,6.93949,146.76,146.72,8.17853187]
[1728333122462,0.12549,146.76,146.72,1.36293187]
[1728333122657,6.8135,146.77,146.73,19.25523795]
[1728333122978,6.8135,146.77,146.73,19.25553795]
[1728333124656,6.8138,146.76,146.73,19.25553795]
[1728333124869,6.8135,146.77,146.74,6.8147]
[1728333125076,7.06418,146.78,146.74,20.61788822]
[1728333128673,7.06418,146.78,146.75,1.36273704]
[1728333128674,6.8132,146.78,146.75,1.36273704]
[1728333129285,6.8132,146.78,146.74,19.25513795]
[1728333129456,6.8134,146.77,146.73,19.25543795]
[1728333129778,20.0,146.79,146.73,12.44043795]
[1728333129779,6.8139,146.76,146.73,12.44043795]
[1728333135269,217.0309,146.8,146.73,12.44043795]
[1728333135270,6.8136,146.77,146.73,20.61834308]
[1728333136389,6.8136,146.77,146.73,19.25553795]
[1728333138876,6.8132,146.78,146.75,12.44043795]
[1728333139962,6.8132,146.78,146.75,13.80312229]
[1728333140355,6.8125,146.79,146.76,13.80312229]
[1728333140591,200.0,146.8,146.77,19.25363795]
[1728333140886,206.812,146.8,146.78,12.44043795]
[1728333141079,206.812,146.8,146.77,19.25363795]
[1728333141775,206.812,146.8,146.77,12.44043795]
[1728333154971,200.0,146.8,146.77,12.44043795]
[1728333155176,6.8129,146.78,146.76,15.0971]
[1728333155599,6.8136,146.77,146.75,12.44043795]
[1728333158403,6.8136,146.77,146.72,15.7895]
[1728333158404,0.12549,146.79,146.72,15.7895]
[1728333158697,17.15659,146.79,146.73,12.44043795]
[1728333158888,6.8139,146.76,146.73,12.44043795]
[1728333159604,6.8139,146.76,146.73,19.25563795]
[1728333160373,0.12549,146.78,146.73,12.44043795]
[1728333160576,0.12549,146.78,146.64,34.097]
[1728333160577,44.027864,146.79,146.68,22.002]
[1728333160879,6.8161,146.71,146.68,15.5707]
[1728333161378,6.8161,146.71,146.68,28.01113795]
[1728333166606,20.25098,146.75,146.68,28.01113795]
[1728333166798,20.0,146.75,146.7,12.44043795]
[1728333166985,6.8144,146.75,146.72,12.44043795]
[1728333167187,6.8147,146.74,146.72,12.44043795]
[1728333172713,17.0321,146.79,146.72,12.44043795]
[1728333172920,6.8144,146.75,146.72,12.44043795]
[1728333180811,6.8148,146.74,146.7,23.8576]
[1728333180990,6.8148,146.74,146.7,36.29803795]
[1728333181812,6.8153,146.73,146.7,29.48163795]
[1728333182001,6.8153,146.73,146.7,36.29823795]
[1728333184121,6.8159,146.72,146.68,22.3881]
[1728333184324,6.8164,146.71,146.68,15.5707]
[1728333191022,6.817,146.69,146.68,15.5707]
[1728333191224,6.8167,146.7,146.68,15.5707]
[1728333191436,6.817,146.69,146.65,6.8186]
[1728333192319,6.8184,146.66,146.64,16.0006]
[1728333192543,6.8184,146.67,146.64,16.0006]
[1728333195439,6.8186,146.66,146.64,16.0006]
[1728333195931,6.8189,146.65,146.64,16.0006]
[1728333197835,6.8185,146.66,146.64,16.0006]
[1728333198309,6.818,146.67,146.64,16.0006]
[1728333199523,6.8175,146.68,146.64,22.8198]
[1728333199827,6.818,146.67,146.64,22.8198]
[1728333200935,0.25098,146.69,146.64,16.0006]
[1728333201434,6.8186,146.66,146.64,16.0006]
[1728333201631,6.8181,146.67,146.64,16.0006]
[1728333209933,6.8185,146.66,146.64,16.0006]
[1728333211643,6.8189,146.65,146.64,16.0006]
[1728333212518,6.8189,146.65,146.62,32.0856]
[1728333212718,6.8189,146.65,146.62,15.0351]
[1728333213726,20.0,146.68,146.62,15.0351]
[1728333213927,6.8196,146.64,146.62,15.0351]
[1728333215540,24.027864,146.67,146.61,0.9408616]
[1728333215845,6.8203,146.62,146.61,0.9408616]
[1728333216415,13.02048842,146.62,146.61,0.9408616]
[1728333216934,6.8203,146.62,146.61,0.9408616]
[1728333217328,6.82,146.63,146.61,13.38129955]
[1728333217537,6.8192,146.65,146.61,20.20209955]
[1728333217746,19.68217733,146.64,146.61,13.38129955]
[1728333217921,6.8194,146.64,146.61,13.38129955]
[1728333219242,40.820384,146.69,146.63,12.44043795]
[1728333219450,6.8186,146.66,146.63,28.94723795]
[1728333219744,23.52626111,146.65,146.63,37.13083037]
[1728333219946,6.8176,146.68,146.63,30.31103037]
[1728333220148,23.52927979,146.67,146.65,12.44043795]
[1728333220353,6.8176,146.68,146.65,12.44043795]
[1728333220354,6.66374703,146.66,146.65,12.44043795]
[1728333220533,6.8185,146.66,146.63,22.8023]
[1728333220727,6.66374703,146.65,146.63,35.24273795]
[1728333221057,6.8185,146.66,146.63,35.24273795]
[1728333221246,6.66579843,146.65,146.63,35.24273795]
[1728333221543,6.8185,146.66,146.63,35.24273795]
[1728333221747,6.66726693,146.65,146.63,35.24273795]
[1728333221937,6.8185,146.66,146.63,42.06253795]
[1728333222141,6.6674148,146.65,146.63,42.06253795]
[1728333222539,6.8182,146.67,146.63,42.06253795]
[1728333222840,23.5439335,146.66,146.63,42.06253795]
[1728333223040,6.66874252,146.65,146.63,35.24273795]
[1728333223232,6.670309,146.64,146.63,22.8023]
[1728333223456,6.670309,146.64,146.63,35.24273795]
[1728333224449,6.670309,146.64,146.63,42.06253795]
[1728333224627,0.12549,146.69,146.63,42.06253795]
[1728333224628,6.8172,146.69,146.63,36.60637784]
[1728333224831,33.48325233,146.68,146.66,12.44043795]
[1728333225152,23.55439176,146.67,146.66,13.80395258]
[1728333225346,33.4833239,146.67,146.66,12.44043795]
[1728333225557,23.5587035,146.67,146.66,12.44043795]
[1728333225929,6.8176,146.68,146.66,12.44043795]
[1728333226158,23.55942637,146.67,146.66,12.44043795]
[1728333226732,12.88016282,146.67,146.66,12.44043795]
[1728333227631,22.80918816,146.67,146.66,12.44043795]
[1728333229164,22.66099631,146.67,146.66,12.44043795]
[1728333230456,22.66099631,146.67,146.65,12.44043795]
[1728333230641,12.73197097,146.66,146.65,12.44043795]
[1728333231051,12.73197097,146.66,146.65,20.62294854]
[1728333231052,6.52634787,146.66,146.65,20.62294854]
[1728333233545,6.52634787,146.66,146.65,19.25933795]
[1728333235953,6.53247657,146.66,146.65,19.25933795]
[1728333237456,6.53247657,146.66,146.64,17.048]
[1728333237796,6.53247657,146.65,146.64,36.30773795]
[1728333238137,6.53247657,146.65,146.64,29.48843795]
[1728333238543,6.53247657,146.65,146.64,36.30783795]
[1728333238940,6.53247657,146.65,146.63,22.8023]
[1728333239143,6.53247657,146.64,146.63,42.06243795]
[1728333240537,13.35187657,146.64,146.63,16.5068]
[1728333240852,13.35197657,146.64,146.61,0.9408616]
[1728333241057,6.53247657,146.63,146.61,0.9408616]
[1728333241233,6.8195,146.64,146.61,0.9408616]
[1728333241234,6.53247657,146.62,146.61,0.9408616]
[1728333242042,6.53247657,146.62,146.61,14.74529083]
[1728333242339,6.53247657,146.62,146.61,21.56609083]
[1728333242543,6.53247657,146.62,146.61,20.20209955]
[1728333243146,6.53247657,146.62,146.61,13.38129955]
[1728333245062,6.53247657,146.62,146.61,0.9408616]
[1728333247360,6.53247657,146.62,146.61,20.20209955]
[1728333248368,6.8191,146.65,146.61,20.20209955]
[1728333248546,6.52909071,146.64,146.62,12.44043795]
[1728333248745,6.52909071,146.63,146.62,12.44043795]
[1728333248956,6.52909071,146.63,146.61,20.20209955]
[1728333249162,6.52909071,146.62,146.61,20.20209955]
[1728333251672,6.52820158,146.62,146.61,20.20209955]
[1728333255471,6.8191,146.65,146.61,20.20209955]
[1728333255671,6.52676653,146.62,146.61,20.20209955]
[1728333258379,6.8191,146.65,146.61,20.20209955]
[1728333258877,6.52594519,146.62,146.61,20.20209955]
[1728333261469,6.8191,146.65,146.61,20.20209955]
[1728333264482,6.52829245,146.64,146.61,20.20209955]
[1728333266571,6.52829245,146.63,146.61,20.20209955]
[1728333266767,6.52829245,146.62,146.61,20.20209955]
[1728333267267,6.52829245,146.62,146.61,0.9408616]
[1728333267974,13.34859245,146.62,146.61,0.9408616]
[1728333268474,6.52829245,146.62,146.61,0.9408616]
[1728333269066,6.52829245,146.62,146.61,13.38129955]
[1728333269774,6.52829245,146.62,146.61,0.9408616]
[1728333269961,6.52810082,146.62,146.61,0.9408616]
[1728333270865,13.34840082,146.62,146.61,0.9408616]
[1728333275885,6.52810082,146.62,146.61,0.9408616]
[1728333276086,6.52810082,146.62,146.61,13.38129955]
[1728333276293,6.8195,146.64,146.61,13.38129955]
[1728333276498,6.52438807,146.62,146.61,13.38129955]
[1728333278493,6.52438807,146.62,146.61,20.20209955]
[1728333279271,6.52438807,146.62,146.61,13.38129955]
[1728333280096,6.52855174,146.62,146.61,13.38129955]
[1728333281576,6.52855174,146.62,146.61,20.20209955]
[1728333283005,6.53280861,146.62,146.61,20.20209955]
[1728333285375,6.53280861,146.62,146.61,13.38129955]
[1728333286097,6.53280861,146.62,146.61,14.74527665]
[1728333286601,6.53280861,146.62,146.61,21.56607665]
[1728333288999,6.53280861,146.62,146.61,20.20209955]
[1728333289574,6.53280861,146.62,146.61,13.38129955]
[1728333290322,6.53280861,146.62,146.61,20.20209955]
[1728333293403,6.53853026,146.62,146.61,20.20209955]
[1728333295397,12.76760906,146.62,146.61,0.9408616]
[1728333296696,6.8199,146.63,146.61,0.9408616]
[1728333296902,12.76753161,146.62,146.61,0.9408616]
[1728333299011,12.76753161,146.62,146.61,20.20209955]
[1728333300412,6.22984654,146.62,146.61,20.20209955]
[1728333300705,6.5377174,146.62,146.61,20.20209955]
[1728333300897,22.74396005,146.62,146.61,13.38129955]
[1728333302413,22.74396005,146.62,146.61,0.9408616]
[1728333302634,29.56426005,146.62,146.61,0.9408616]
[1728333302918,29.5511749,146.62,146.61,0.9408616]
[1728333303991,22.7308749,146.62,146.61,0.9408616]
[1728333306189,16.18872092,146.62,146.61,0.9408616]
[1728333306391,22.7198045,146.62,146.61,0.9408616]
[1728333309930,22.69809631,146.62,146.61,0.9408616]
[1728333312916,22.70198052,146.62,146.61,0.9408616]
[1728333315322,29.77326052,146.62,146.61,0.9408616]
[1728333315626,73.55014452,146.62,146.61,0.9408616]
[1728333316019,73.54469623,146.62,146.61,0.9408616]
[1728333319322,73.53850167,146.62,146.61,0.9408616]
[1728333319824,50.848164,146.62,146.61,0.9408616]
[1728333320011,73.53318025,146.62,146.61,0.9408616]
[1728333321934,50.848164,146.62,146.61,0.9408616]
[1728333322116,73.52663665,146.62,146.61,0.9408616]
[1728333322735,46.99915927,146.62,146.61,0.9408616]
[1728333322933,73.52240676,146.62,146.61,0.9408616]
[1728333324622,49.62003276,146.62,146.61,0.9408616]
[1728333324929,29.62003276,146.62,146.61,0.9408616]
[1728333325346,29.49454276,146.62,146.61,0.9408616]
[1728333326518,29.74552276,146.62,146.61,0.9408616]
[1728333327141,19.80644875,146.62,146.61,0.9408616]
[1728333329941,43.58333275,146.62,146.61,0.9408616]
[1728333330536,63.58333275,146.62,146.61,6.16e-05]
[1728333335859,50.848164,146.62,146.61,6.16e-05]
[1728333336027,63.49203363,146.62,146.61,6.16e-05]
[1728333336359,39.46416963,146.62,146.61,6.16e-05]
[1728333337439,39.58965963,146.62,146.61,6.16e-05]
[1728333337753,63.49203363,146.62,146.61,6.16e-05]
[1728333339168,50.848164,146.62,146.61,6.16e-05]
[1728333339455,63.49234233,146.62,146.61,6.16e-05]
[1728333339660,19.46447833,146.62,146.61,6.16e-05]
[1728333339861,12.64417833,146.62,146.61,6.16e-05]
[1728333340069,12.64417833,146.62,146.61,6.8208616]
[1728333340367,6.12796736,146.62,146.61,6.8208616]
[1728333340749,6.8192,146.65,146.61,6.8208616]
[1728333340943,12.65113279,146.64,146.61,6.8208616]
[1728333341150,12.65113279,146.63,146.61,6.16e-05]
[1728333341349,6.8195,146.64,146.61,6.16e-05]
[1728333341552,12.65104331,146.63,146.61,6.16e-05]
[1728333341742,6.8195,146.64,146.61,6.16e-05]
[1728333341943,12.65077123,146.63,146.61,6.16e-05]
[1728333342162,6.8195,146.64,146.61,6.16e-05]
[1728333342373,12.65079021,146.63,146.61,6.16e-05]
[1728333342560,6.5202193,146.63,146.61,6.16e-05]
[1728333342906,6.8195,146.64,146.61,6.16e-05]
[1728333343045,12.6502436,146.63,146.61,6.16e-05]
[1728333343370,6.8195,146.64,146.61,6.16e-05]
[1728333343545,12.65014606,146.63,146.61,6.8207616]
[1728333343860,6.94449,146.65,146.61,6.8207616]
[1728333344068,12.6502717,146.64,146.61,6.8207616]
[1728333344244,12.6502717,146.63,146.61,6.8207616]
[1728333344438,6.94449,146.65,146.61,6.8207616]
[1728333344639,12.6502047,146.64,146.61,6.8207616]
[1728333344982,12.6502047,146.63,146.61,6.8207616]
[1728333345146,6.94449,146.65,146.61,6.8207616]
[1728333345462,12.64752456,146.64,146.61,6.8207616]
[1728333345641,6.94449,146.65,146.61,6.8207616]
[1728333345642,12.64752456,146.63,146.61,6.8207616]
[1728333345847,6.94449,146.65,146.61,6.8207616]
[1728333346046,12.64686934,146.64,146.61,19.26119955]
[1728333346247,12.64686934,146.63,146.61,6.16e-05]
[1728333346546,6.8195,146.64,146.61,6.16e-05]
[1728333346752,12.64674274,146.63,146.61,6.16e-05]
[1728333346981,6.8195,146.64,146.61,6.16e-05]
[1728333347269,12.64645432,146.63,146.61,6.16e-05]
[1728333347568,6.8195,146.64,146.61,6.16e-05]
[1728333347774,12.64655416,146.63,146.61,6.16e-05]
[1728333347966,6.8195,146.64,146.61,6.16e-05]
[1728333348167,12.64677492,146.63,146.61,6.16e-05]
[1728333348372,6.8195,146.64,146.61,6.16e-05]
[1728333348674,12.64602073,146.63,146.61,6.16e-05]
[1728333348860,6.8195,146.64,146.61,6.16e-05]
[1728333349046,12.64447086,146.63,146.61,6.16e-05]
[1728333349252,6.8195,146.64,146.61,6.16e-05]
[1728333349470,12.64434958,146.63,146.61,6.16e-05]
[1728333349671,6.8195,146.64,146.61,6.16e-05]
[1728333349870,12.64009376,146.63,146.61,6.16e-05]
[1728333350053,6.8195,146.64,146.61,6.16e-05]
[1728333350255,12.63998651,146.63,146.61,6.16e-05]
[1728333350469,6.8195,146.64,146.61,6.16e-05]
[1728333350673,12.63905637,146.63,146.61,6.16e-05]
[1728333350854,6.8195,146.64,146.61,6.16e-05]
[1728333351059,12.63897469,146.63,146.61,6.16e-05]
[1728333351262,0.12549,146.65,146.61,6.16e-05]
[1728333351457,6.8203,146.62,146.61,6.16e-05]
[1728333351771,19.45764264,146.62,146.61,6.16e-05]
[1728333352781,12.63734264,146.62,146.61,6.16e-05]
[1728333355676,6.12468653,146.62,146.61,6.16e-05]
[1728333356573,12.63586997,146.62,146.61,6.16e-05]
[1728333358182,6.12468653,146.62,146.61,6.16e-05]
[1728333358881,6.12474168,146.62,146.61,6.16e-05]
[1728333359255,6.51123255,146.62,146.61,6.16e-05]
[1728333359473,12.63708245,146.62,146.61,6.16e-05]
[1728333359674,6.1258499,146.62,146.61,6.16e-05]
[1728333360678,12.63812158,146.62,146.61,6.16e-05]
[1728333360851,12.63812158,146.62,146.61,12.44049955]
[1728333361058,6.1258499,146.62,146.61,12.44049955]
[1728333361252,6.94499,146.64,146.61,12.44049955]
[1728333361477,12.63901419,146.63,146.61,19.26129955]
[1728333361670,6.94469,146.65,146.62,12.44043795]
[1728333361872,12.63898949,146.64,146.61,20.62526858]
[1728333362074,12.63898949,146.63,146.61,20.62526858]
[1728333362282,6.94469,146.65,146.61,20.62526858]
[1728333362467,12.63765174,146.64,146.61,20.62526858]
[1728333362669,12.63765174,146.63,146.61,20.62526858]
[1728333362966,6.94469,146.65,146.61,20.62526858]
[1728333363287,12.63397645,146.64,146.61,20.62526858]
[1728333363458,12.63397645,146.63,146.61,20.62526858]
[1728333363777,6.94469,146.65,146.61,20.62526858]
[1728333363981,12.63140606,146.64,146.61,20.62526858]
[1728333364281,12.63140606,146.63,146.61,20.62526858]
[1728333364489,6.94469,146.65,146.61,20.62526858]
[1728333364669,12.94209991,146.64,146.61,20.62526858]
[1728333364869,12.63128785,146.63,146.61,6.8208616]
[1728333365074,6.8194,146.64,146.61,6.8208616]
[1728333365384,12.63168873,146.63,146.61,6.8208616]
[1728333365585,6.8194,146.64,146.61,6.8208616]
[1728333365889,12.63097092,146.63,146.61,6.8208616]
[1728333366071,6.8194,146.64,146.61,6.8208616]
[1728333366271,12.63109517,146.63,146.61,6.8208616]
[1728333366569,6.8194,146.64,146.61,6.8208616]
[1728333366776,19.45038772,146.63,146.61,6.16e-05]
[1728333366956,19.44969402,146.62,146.61,6.16e-05]
[1728333367677,12.62939402,146.62,146.61,6.16e-05]
[1728333367902,6.12162754,146.62,146.61,6.16e-05]
[1728333368064,12.62963427,146.62,146.61,6.16e-05]
[1728333368262,6.94499,146.64,146.61,6.16e-05]
[1728333368462,6.12164356,146.63,146.61,6.16e-05]
[1728333368678,6.50800255,146.63,146.61,6.16e-05]
[1728333368882,6.94499,146.64,146.61,6.16e-05]
[1728333369081,12.6305336,146.63,146.61,6.16e-05]
[1728333369288,6.94499,146.64,146.61,6.16e-05]
[1728333369493,12.63048764,146.63,146.61,6.16e-05]
[1728333369694,6.94499,146.64,146.61,6.16e-05]
[1728333369896,12.62974907,146.63,146.61,6.16e-05]
[1728333370070,6.94499,146.64,146.61,6.16e-05]
[1728333370367,12.62954763,146.63,146.61,6.16e-05]
[1728333370564,6.8195,146.64,146.61,6.16e-05]
[1728333370769,12.62709248,146.63,146.61,6.16e-05]
[1728333370984,6.8195,146.64,146.61,6.16e-05]
[1728333371183,6.11794684,146.63,146.61,6.16e-05]
[1728333371470,6.8195,146.64,146.61,6.16e-05]
[1728333371670,12.62145432,146.63,146.61,6.16e-05]
[1728333371891,6.8195,146.64,146.61,6.16e-05]
[1728333372083,12.62246377,146.63,146.61,6.16e-05]
[1728333372276,6.8195,146.64,146.61,6.16e-05]
[1728333372477,12.62120843,146.63,146.61,6.16e-05]
[1728333372693,6.8195,146.64,146.61,6.16e-05]
[1728333372989,6.11673105,146.63,146.61,6.16e-05]
[1728333373171,6.8195,146.64,146.61,6.16e-05]
[1728333373366,12.6210021,146.63,146.62,19.26063795]
[1728333373572,6.818,146.67,146.63,6.8196]
[1728333373796,12.62297157,146.66,146.63,6.8196]
[1728333373972,6.818,146.67,146.63,6.8196]
[1728333373973,12.62297157,146.65,146.63,6.8196]
[1728333374177,6.818,146.67,146.63,6.8196]
[1728333374367,12.62249803,146.66,146.63,6.8196]
[1728333374571,6.11751176,146.65,146.62,12.44043795]
[1728333374790,6.11751176,146.64,146.62,12.44043795]
[1728333374973,6.8192,146.65,146.62,12.44043795]
[1728333375300,6.11669339,146.64,146.62,12.44043795]
[1728333375590,6.8192,146.65,146.62,12.44043795]
[1728333375782,6.11616463,146.64,146.62,12.44043795]
[1728333375982,6.8192,146.65,146.62,12.44043795]
[1728333376181,12.62018758,146.64,146.62,12.44043795]
[1728333376385,6.8192,146.65,146.61,23.8724616]
[1728333376585,12.62143926,146.64,146.61,23.8724616]
[1728333376893,6.8192,146.65,146.61,23.8724616]
[1728333377095,12.62233016,146.64,146.61,23.8724616]
[1728333377282,6.8192,146.65,146.61,23.8724616]
[1728333377482,12.6233296,146.64,146.61,23.8724616]
[1728333377683,6.8192,146.65,146.61,23.8724616]
[1728333377895,6.11751423,146.64,146.61,23.8724616]
[1728333378084,6.8192,146.65,146.61,23.8724616]
[1728333378278,12.62368544,146.64,146.61,23.8724616]
[1728333378473,6.50610608,146.64,146.61,23.8724616]
[1728333378693,6.8192,146.65,146.61,23.8724616]
[1728333378878,12.62520594,146.64,146.61,23.8724616]
[1728333379078,6.8192,146.65,146.61,23.8724616]
[1728333379297,12.62488168,146.64,146.61,23.8724616]
[1728333379601,6.8192,146.65,146.61,23.8724616]
[1728333379902,12.62665172,146.64,146.61,23.8724616]
[1728333380192,6.8192,146.65,146.61,23.8724616]
[1728333380412,12.62732841,146.64,146.61,23.8724616]
[1728333380574,6.50944872,146.63,146.61,23.8724616]
[1728333380774,6.8192,146.65,146.61,23.8724616]
[1728333380975,12.63039821,146.64,146.61,23.8724616]
[1728333381296,6.8192,146.65,146.61,23.8724616]
[1728333381504,6.51492308,146.63,146.61,23.8724616]
[1728333381799,6.8192,146.65,146.61,23.8724616]
[1728333381970,20.25098,146.69,146.63,17.0494]
[1728333382173,6.94389,146.67,146.63,23.8691]
[1728333382386,12.93782737,146.66,146.63,23.8691]
[1728333382584,6.11932737,146.65,146.63,23.8691]
[1728333382803,6.8185,146.66,146.63,23.8691]
[1728333382985,6.11884553,146.65,146.63,23.8691]
[1728333383186,6.8185,146.66,146.63,23.8691]
[1728333383491,6.1188842,146.65,146.63,23.8691]
[1728333383692,6.1188842,146.64,146.63,23.8691]
[1728333383902,6.1188842,146.64,146.61,12.44049955]
[1728333383903,12.9382842,146.64,146.61,6.16e-05]
[1728333384082,6.11808815,146.63,146.61,6.16e-05]
[1728333384282,6.8194,146.64,146.61,6.16e-05]
[1728333384497,6.11844359,146.63,146.61,6.16e-05]
[1728333384704,6.8194,146.64,146.61,6.16e-05]
[1728333384885,6.11842835,146.63,146.61,6.16e-05]
[1728333385201,6.8194,146.64,146.61,6.16e-05]
[1728333385382,12.9368881,146.63,146.61,6.16e-05]
[1728333385586,6.1169881,146.62,146.61,6.16e-05]
[1728333386106,6.11677284,146.62,146.61,6.16e-05]
[1728333390284,13.06256284,146.62,146.61,6.16e-05]
[1728333390480,6.24226284,146.62,146.61,6.16e-05]
[1728333390803,6.11677284,146.62,146.61,6.16e-05]
[1728333391108,13.18805284,146.62,146.61,6.16e-05]
[1728333394595,13.19459684,146.62,146.61,6.16e-05]
[1728333395303,13.06910684,146.62,146.61,6.16e-05]
[1728333395506,6.12331684,146.62,146.61,19.26129955]
[1728333395803,6.8178,146.68,146.61,29.20152249]
[1728333396008,6.8178,146.68,146.64,12.44043795]
[1728333396182,6.8178,146.68,146.64,20.62356106]
[1728333396583,6.8172,146.69,146.65,6.8188]
[1728333397993,0.25098,146.68,146.65,6.8188]
[1728333398187,25.226996,146.74,146.67,12.44043795]
[1728333398409,6.8163,146.71,146.67,19.25833795]
[1728333399301,6.8163,146.71,146.67,12.44043795]
[1728333399487,0.25098,146.7,146.67,12.44043795]
[1728333400217,0.25098,146.7,146.67,42.44043795]
[1728333401694,7.06758,146.7,146.67,42.44043795]
[1728333402321,6.8163,146.71,146.67,50.62191147]